[Event "*** Titled Tuesday Blitz"]
[Site "Chess.com"]
[Date "2020.11.03"]
[Round "7"]
[White "enriquebutti"]
[Black "DinaBelenkaya"]
[Result "0-1"]
[WhiteElo "1995"]
[BlackElo "2350"]
[TimeControl "180+1"]
[EndTime "11:23:16 PST"]
[Termination "DinaBelenkaya won by checkmate"]

1. Nf3 {[%clk 0:03:00.8]} 1... d5 {[%clk 0:02:59.4]} 2. b3 {[%clk 0:03:00.6]}
2... Bf5 {[%clk 0:02:57.4]} 3. Bb2 {[%clk 0:03:00.8]} 3... e6 {[%clk 0:02:52.7]}
4. e3 {[%clk 0:03:00.4]} 4... Nf6 {[%clk 0:02:52.8]} 5. d4 {[%clk 0:02:59.7]}
5... Bd6 {[%clk 0:02:51.6]} 6. Bd3 {[%clk 0:03:00.2]} 6... O-O {[%clk
0:02:49.2]} 7. Nbd2 {[%clk 0:03:00.5]} 7... Ne4 {[%clk 0:02:39.6]} 8. O-O {[%clk
0:02:59.2]} 8... Nd7 {[%clk 0:02:38.3]} 9. Ne5 {[%clk 0:02:57.3]} 9... Nxe5
{[%clk 0:02:04.9]} 10. dxe5 {[%clk 0:02:58.1]} 10... Bb4 {[%clk 0:02:02]} 11.
Nf3 {[%clk 0:02:55.1]} 11... c5 {[%clk 0:01:55.3]} 12. c4 {[%clk 0:02:45.7]}
12... dxc4 {[%clk 0:01:32.3]} 13. Bxc4 {[%clk 0:02:44.4]} 13... a6 {[%clk
0:01:18.7]} 14. a3 {[%clk 0:02:36.7]} 14... Ba5 {[%clk 0:01:16.6]} 15. Qc1
{[%clk 0:02:14.7]} 15... b5 {[%clk 0:00:58.8]} 16. Be2 {[%clk 0:02:13.1]} 16...
Qc7 {[%clk 0:00:46.5]} 17. Rd1 {[%clk 0:02:11.2]} 17... Rfd8 {[%clk 0:00:46.7]}
18. Bd3 {[%clk 0:02:07.7]} 18... h6 {[%clk 0:00:39.9]} 19. Nh4 {[%clk
0:01:56.3]} 19... Bh7 {[%clk 0:00:38.9]} 20. b4 {[%clk 0:01:47.6]} 20... Bb6
{[%clk 0:00:21.6]} 21. Nf3 {[%clk 0:01:45.5]} 21... c4 {[%clk 0:00:21.4]} 22.
Bxe4 {[%clk 0:01:27.2]} 22... Bxe4 {[%clk 0:00:22.3]} 23. Nd4 {[%clk 0:01:24.1]}
23... Bd3 {[%clk 0:00:22.1]} 24. Bc3 {[%clk 0:01:12]} 24... Rac8 {[%clk
0:00:20.8]} 25. Nf3 {[%clk 0:01:02.8]} 25... Qb7 {[%clk 0:00:20.4]} 26. Qb2
{[%clk 0:01:01.5]} 26... Bc7 {[%clk 0:00:20.1]} 27. Rac1 {[%clk 0:01:00.7]}
27... Qb8 {[%clk 0:00:20.2]} 28. Bd4 {[%clk 0:00:58.2]} 28... Rd5 {[%clk
0:00:20]} 29. h3 {[%clk 0:00:51.7]} 29... g5 {[%clk 0:00:20]} 30. Rc3 {[%clk
0:00:45.1]} 30... Kg7 {[%clk 0:00:20.1]} 31. Qc1 {[%clk 0:00:42]} 31... Be4
{[%clk 0:00:20]} 32. Nd2 {[%clk 0:00:40.2]} 32... Bd3 {[%clk 0:00:19.2]} 33. Nf3
{[%clk 0:00:37.3]} 33... Rd7 {[%clk 0:00:18.5]} 34. h4 {[%clk 0:00:33.8]} 34...
g4 {[%clk 0:00:17.9]} 35. Ne1 {[%clk 0:00:34.1]} 35... Be4 {[%clk 0:00:16]} 36.
f3 {[%clk 0:00:30.4]} 36... gxf3 {[%clk 0:00:16.9]} 37. gxf3 {[%clk 0:00:30.3]}
37... Bg6 {[%clk 0:00:16.8]} 38. f4 {[%clk 0:00:27.4]} 38... Qb7 {[%clk
0:00:17.1]} 39. Qd2 {[%clk 0:00:27]} 39... Kh7 {[%clk 0:00:17.4]} 40. Qg2 {[%clk
0:00:21.7]} 40... Be4 {[%clk 0:00:17.4]} 41. Qh2 {[%clk 0:00:20.8]} 41... Rg8+
{[%clk 0:00:17.8]} 42. Kf1 {[%clk 0:00:20.6]} 42... Bf3 {[%clk 0:00:14]} 43. Rd2
{[%clk 0:00:18.9]} 43... Bg4 {[%clk 0:00:14.1]} 44. Rg2 {[%clk 0:00:15.6]} 44...
h5 {[%clk 0:00:14.3]} 45. Rcc2 {[%clk 0:00:14.2]} 45... Qe4 {[%clk 0:00:14.6]}
46. Rcf2 {[%clk 0:00:13.7]} 46... c3 {[%clk 0:00:13.1]} 47. Nc2 {[%clk
0:00:12.8]} 47... Qd3+ {[%clk 0:00:09]} 48. Kg1 {[%clk 0:00:11.4]} 48... Qd1+
{[%clk 0:00:08.8]} 49. Rf1 {[%clk 0:00:10.5]} 49... Qd3 {[%clk 0:00:09.4]} 50.
Ne1 {[%clk 0:00:09.1]} 50... Qe4 {[%clk 0:00:09.5]} 51. Rff2 {[%clk 0:00:06.2]}
51... Rdd8 {[%clk 0:00:09.8]} 52. Nc2 {[%clk 0:00:05.8]} 52... Rg6 {[%clk
0:00:10.1]} 53. Ne1 {[%clk 0:00:06.2]} 53... Rdg8 {[%clk 0:00:10]} 54. Kf1
{[%clk 0:00:06]} 54... Qb1 {[%clk 0:00:07.1]} 55. Rc2 {[%clk 0:00:04.4]} 55...
Bf5 {[%clk 0:00:07.1]} 56. Rxc3 {[%clk 0:00:03.6]} 56... Rxg2 {[%clk 0:00:06.1]}
57. Qxg2 {[%clk 0:00:03.2]} 57... Rxg2 {[%clk 0:00:06]} 58. Kxg2 {[%clk
0:00:04.1]} 58... Qxe1 {[%clk 0:00:05.4]} 59. Rxc7 {[%clk 0:00:05]} 59... Qd2+
{[%clk 0:00:05.3]} 60. Kf3 {[%clk 0:00:05]} 60... Bg4+ {[%clk 0:00:04.2]} 61.
Ke4 {[%clk 0:00:05.1]} 61... Kg6 {[%clk 0:00:05.1]} 62. Rc3 {[%clk 0:00:04.2]}
62... Qd1 {[%clk 0:00:05.2]} 63. Bc5 {[%clk 0:00:03.8]} 63... Qb1+ {[%clk
0:00:05.3]} 64. Kd4 {[%clk 0:00:02.3]} 64... Bf3 {[%clk 0:00:05.7]} 65. e4
{[%clk 0:00:01.6]} 65... Qd1+ {[%clk 0:00:05.7]} 66. Rd3 {[%clk 0:00:01.8]}
66... Qa1+ {[%clk 0:00:06.2]} 67. Ke3 {[%clk 0:00:01.6]} 67... Bg2 {[%clk
0:00:06.7]} 68. f5+ {[%clk 0:00:02.2]} 68... exf5 {[%clk 0:00:05.6]} 69. Rd6+
{[%clk 0:00:03.1]} 69... Kg7 {[%clk 0:00:04.9]} 70. exf5 {[%clk 0:00:04]} 70...
Qe1+ {[%clk 0:00:04.6]} 71. Kf4 {[%clk 0:00:03.7]} 71... Qf1+ {[%clk 0:00:04.5]}
72. Kg3 {[%clk 0:00:04]} 72... Qf3+ {[%clk 0:00:04.4]} 73. Kh2 {[%clk
0:00:04.4]} 73... Qh3+ {[%clk 0:00:05.3]} 74. Kg1 {[%clk 0:00:04.1]} 74... Qg4
{[%clk 0:00:05.3]} 75. Kf2 {[%clk 0:00:05]} 75... Be4 {[%clk 0:00:04.8]} 76. Bd4
{[%clk 0:00:02.1]} 76... Qf3+ {[%clk 0:00:04.5]} 77. Ke1 {[%clk 0:00:01.7]}
77... Qg3+ {[%clk 0:00:03.6]} 78. Kd1 {[%clk 0:00:02.6]} 78... Bf3+ {[%clk
0:00:02.8]} 79. Kc1 {[%clk 0:00:02.8]} 79... Qe1+ {[%clk 0:00:02.4]} 80. Kb2
{[%clk 0:00:02.4]} 80... Qd2+ {[%clk 0:00:02]} 81. Kb3 {[%clk 0:00:02.3]} 81...
Bd1# {[%clk 0:00:01.2]} 0-1

[Event "*** Titled Tuesday Blitz"]
[Site "Chess.com"]
[Date "2020.11.03"]
[Round "7"]
[White "pedromartinez91"]
[Black "Anton_Demchenko"]
[Result "0-1"]
[WhiteElo "2592"]
[BlackElo "2839"]
[TimeControl "180+1"]
[EndTime "11:24:47 PST"]
[Termination "Anton_Demchenko won by checkmate"]

1. b3 {[%clk 0:03:00.9]} 1... g6 {[%clk 0:02:58]} 2. Bb2 {[%clk 0:03:00.1]} 2...
Nf6 {[%clk 0:02:58.6]} 3. Bxf6 {[%clk 0:03:00.7]} 3... exf6 {[%clk 0:02:58.7]}
4. d4 {[%clk 0:03:01.6]} 4... d5 {[%clk 0:02:59.4]} 5. e3 {[%clk 0:03:01.8]}
5... c6 {[%clk 0:02:59.8]} 6. Nd2 {[%clk 0:03:01.6]} 6... Be6 {[%clk 0:02:52]}
7. Ngf3 {[%clk 0:03:01.4]} 7... Bd6 {[%clk 0:02:50.1]} 8. g3 {[%clk 0:03:01]}
8... Nd7 {[%clk 0:02:46.8]} 9. Bg2 {[%clk 0:03:01.1]} 9... h5 {[%clk 0:02:44.1]}
10. h4 {[%clk 0:02:57.1]} 10... Bg4 {[%clk 0:02:30.3]} 11. c4 {[%clk 0:02:53.3]}
11... O-O {[%clk 0:02:23.6]} 12. O-O {[%clk 0:02:48.3]} 12... Re8 {[%clk
0:02:14.7]} 13. Re1 {[%clk 0:02:44.1]} 13... a5 {[%clk 0:02:13.7]} 14. Qc2
{[%clk 0:02:42.4]} 14... Bf5 {[%clk 0:02:12]} 15. Qc1 {[%clk 0:02:40.6]} 15...
Qe7 {[%clk 0:02:10.6]} 16. c5 {[%clk 0:02:39.5]} 16... Bc7 {[%clk 0:02:06.4]}
17. a3 {[%clk 0:02:39.7]} 17... Ra7 {[%clk 0:01:27.6]} 18. Qc3 {[%clk
0:02:34.3]} 18... Qf8 {[%clk 0:01:17.9]} 19. Bf1 {[%clk 0:02:29.8]} 19... Rea8
{[%clk 0:01:12.6]} 20. Bd3 {[%clk 0:02:29.6]} 20... Bg4 {[%clk 0:01:09.5]} 21.
Nh2 {[%clk 0:02:27.7]} 21... Be6 {[%clk 0:01:06.7]} 22. Bc2 {[%clk 0:02:27.6]}
22... g5 {[%clk 0:00:48.2]} 23. Nhf3 {[%clk 0:02:21.8]} 23... Qg7 {[%clk
0:00:48.2]} 24. e4 {[%clk 0:02:02.7]} 24... g4 {[%clk 0:00:38.1]} 25. Nh2 {[%clk
0:01:56.1]} 25... Nf8 {[%clk 0:00:34.2]} 26. exd5 {[%clk 0:01:51.1]} 26... Bxd5
{[%clk 0:00:34.1]} 27. Be4 {[%clk 0:01:51.1]} 27... Rd8 {[%clk 0:00:32.4]} 28.
Bxd5 {[%clk 0:01:46.4]} 28... Rxd5 {[%clk 0:00:33.3]} 29. Nc4 {[%clk 0:01:45.5]}
29... f5 {[%clk 0:00:19.8]} 30. Ne3 {[%clk 0:01:40]} 30... Ne6 {[%clk
0:00:13.5]} 31. Nxd5 {[%clk 0:01:38.8]} 31... cxd5 {[%clk 0:00:14.4]} 32. c6
{[%clk 0:01:25.7]} 32... f4 {[%clk 0:00:04.1]} 33. Nf1 {[%clk 0:01:11.3]} 33...
Qf6 {[%clk 0:00:04.1]} 34. cxb7 {[%clk 0:01:08.3]} 34... Rxb7 {[%clk 0:00:04.2]}
35. Rad1 {[%clk 0:01:06.1]} 35... Bb6 {[%clk 0:00:03.9]} 36. Qc6 {[%clk
0:01:04.6]} 36... Rc7 {[%clk 0:00:04.2]} 37. Qxd5 {[%clk 0:01:04.4]} 37... Rc2
{[%clk 0:00:03.8]} 38. Qxh5 {[%clk 0:01:01]} 38... fxg3 {[%clk 0:00:03.7]} 39.
Qxg4+ {[%clk 0:01:01.2]} 39... Kf8 {[%clk 0:00:04.3]} 40. Qxg3 {[%clk
0:00:57.1]} 40... Bc7 {[%clk 0:00:04.7]} 41. Qe3 {[%clk 0:00:48.9]} 41... Nf4
{[%clk 0:00:03.5]} 42. Rd2 {[%clk 0:00:40.7]} 42... Qg6+ {[%clk 0:00:02.7]} 43.
Qg3 {[%clk 0:00:38.5]} 43... Nh3+ {[%clk 0:00:02]} 44. Kg2 {[%clk 0:00:35.4]}
44... Bxg3 {[%clk 0:00:02.9]} 45. fxg3 {[%clk 0:00:31.8]} 45... Rxd2+ {[%clk
0:00:03.4]} 46. Nxd2 {[%clk 0:00:32.7]} 46... Nf4+ {[%clk 0:00:04]} 47. Kf3
{[%clk 0:00:32]} 47... Nd5 {[%clk 0:00:04.9]} 48. Ne4 {[%clk 0:00:30.5]} 48...
Qf5+ {[%clk 0:00:05.2]} 49. Kg2 {[%clk 0:00:30.6]} 49... Qg4 {[%clk 0:00:05.9]}
50. b4 {[%clk 0:00:12.7]} 50... axb4 {[%clk 0:00:05.7]} 51. axb4 {[%clk
0:00:13.6]} 51... Nf4+ {[%clk 0:00:05.7]} 52. Kg1 {[%clk 0:00:13]} 52... Nd3
{[%clk 0:00:05.5]} 53. Re3 {[%clk 0:00:13.1]} 53... Qd1+ {[%clk 0:00:05.6]} 54.
Kg2 {[%clk 0:00:13.4]} 54... Qc2+ {[%clk 0:00:06.1]} 55. Kh3 {[%clk 0:00:13.4]}
55... Nf2+ {[%clk 0:00:06]} 56. Nxf2 {[%clk 0:00:13.6]} 56... Qxf2 {[%clk
0:00:06.9]} 57. Re5 {[%clk 0:00:13.8]} 57... Qf1+ {[%clk 0:00:07.1]} 58. Kh2
{[%clk 0:00:13.8]} 58... Qf2+ {[%clk 0:00:07.2]} 59. Kh3 {[%clk 0:00:13.9]}
59... Qxd4 {[%clk 0:00:07.9]} 60. Rg5 {[%clk 0:00:12.8]} 60... Qxb4 {[%clk
0:00:07.8]} 61. Kh2 {[%clk 0:00:12.6]} 61... Qd2+ {[%clk 0:00:07.7]} 62. Kh3
{[%clk 0:00:11.3]} 62... Qd1 {[%clk 0:00:07.8]} 63. Kg2 {[%clk 0:00:10.2]} 63...
Qe2+ {[%clk 0:00:07.6]} 64. Kh3 {[%clk 0:00:10.3]} 64... f6 {[%clk 0:00:08.4]}
65. Rf5 {[%clk 0:00:10.1]} 65... Kf7 {[%clk 0:00:08.7]} 66. Rf4 {[%clk
0:00:09.9]} 66... Qe1 {[%clk 0:00:08.6]} 67. Kg2 {[%clk 0:00:10]} 67... Kg6
{[%clk 0:00:08.7]} 68. Kh2 {[%clk 0:00:10.1]} 68... Qe2+ {[%clk 0:00:08.6]} 69.
Kg1 {[%clk 0:00:10.4]} 69... Qd2 {[%clk 0:00:08.2]} 70. Kh1 {[%clk 0:00:10.5]}
70... Kf7 {[%clk 0:00:08.5]} 71. Kg1 {[%clk 0:00:10.7]} 71... Ke6 {[%clk
0:00:09.1]} 72. Kh1 {[%clk 0:00:10.9]} 72... Ke5 {[%clk 0:00:09.7]} 73. Kg1
{[%clk 0:00:11.4]} 73... Qe2 {[%clk 0:00:10.2]} 74. Kh1 {[%clk 0:00:11.5]} 74...
Qe1+ {[%clk 0:00:09.1]} 75. Kg2 {[%clk 0:00:11.7]} 75... Qd1 {[%clk 0:00:09.7]}
76. Kh2 {[%clk 0:00:10.1]} 76... Qb3 {[%clk 0:00:08.8]} 77. Kg2 {[%clk
0:00:10.2]} 77... Qd3 {[%clk 0:00:08.6]} 78. Kh2 {[%clk 0:00:10.4]} 78... f5
{[%clk 0:00:08.4]} 79. Kg2 {[%clk 0:00:10.8]} 79... Qe2+ {[%clk 0:00:08.7]} 80.
Kg1 {[%clk 0:00:10.9]} 80... Kf6 {[%clk 0:00:08.8]} 81. Kh1 {[%clk 0:00:10.7]}
81... Kg6 {[%clk 0:00:08.8]} 82. Kg1 {[%clk 0:00:11.2]} 82... Qe1+ {[%clk
0:00:08.7]} 83. Kg2 {[%clk 0:00:11.6]} 83... Qd1 {[%clk 0:00:09.6]} 84. Kh2
{[%clk 0:00:11]} 84... Qd5 {[%clk 0:00:09.5]} 85. Kg1 {[%clk 0:00:11.1]} 85...
Qb3 {[%clk 0:00:08.7]} 86. Kg2 {[%clk 0:00:11.5]} 86... Qa3 {[%clk 0:00:09.6]}
87. Kh2 {[%clk 0:00:11.7]} 87... Qe3 {[%clk 0:00:09.2]} 88. Kg2 {[%clk 0:00:12]}
88... Qe2+ {[%clk 0:00:09.8]} 89. Kg1 {[%clk 0:00:12]} 89... Kf6 {[%clk
0:00:10.5]} 90. Kh1 {[%clk 0:00:11.2]} 90... Ke5 {[%clk 0:00:11.1]} 91. Kg1
{[%clk 0:00:11.2]} 91... Qe3+ {[%clk 0:00:11.5]} 92. Kg2 {[%clk 0:00:11.3]}
92... Qc1 {[%clk 0:00:11.8]} 93. h5 {[%clk 0:00:10.2]} 93... Qc6+ {[%clk
0:00:10.9]} 94. Kh2 {[%clk 0:00:09.5]} 94... Qh6 {[%clk 0:00:11.1]} 95. Rh4
{[%clk 0:00:09.5]} 95... Kf6 {[%clk 0:00:10.9]} 96. Kg2 {[%clk 0:00:09.6]} 96...
Kg5 {[%clk 0:00:10.3]} 97. Kg1 {[%clk 0:00:09.6]} 97... Qb6+ {[%clk 0:00:05.5]}
98. Kg2 {[%clk 0:00:10]} 98... Qb2+ {[%clk 0:00:05.5]} 99. Kg1 {[%clk 0:00:10]}
99... Qc1+ {[%clk 0:00:04.6]} 100. Kg2 {[%clk 0:00:10.2]} 100... Qd2+ {[%clk
0:00:04.9]} 101. Kg1 {[%clk 0:00:10.5]} 101... Qe1+ {[%clk 0:00:04.5]} 102. Kg2
{[%clk 0:00:10.7]} 102... Qe2+ {[%clk 0:00:04.9]} 103. Kg1 {[%clk 0:00:10.9]}
103... Kh6 {[%clk 0:00:05.4]} 104. Kh1 {[%clk 0:00:11.2]} 104... Qf2 {[%clk
0:00:04.8]} 105. Rh3 {[%clk 0:00:09.8]} 105... Qf3+ {[%clk 0:00:03.9]} 106. Kh2
{[%clk 0:00:09.9]} 106... Qe2+ {[%clk 0:00:04.2]} 107. Kh1 {[%clk 0:00:10]}
107... Qf1+ {[%clk 0:00:04.4]} 108. Kh2 {[%clk 0:00:10.2]} 108... f4 {[%clk
0:00:04.5]} 109. gxf4 {[%clk 0:00:10.1]} 109... Qxf4+ {[%clk 0:00:05.4]} 110.
Kg2 {[%clk 0:00:10.1]} 110... Qg4+ {[%clk 0:00:05.7]} 111. Kh2 {[%clk
0:00:10.3]} 111... Qg5 {[%clk 0:00:05.1]} 112. Kh1 {[%clk 0:00:09.8]} 112... Qd2
{[%clk 0:00:04.7]} 113. Kg1 {[%clk 0:00:09.8]} 113... Qe1+ {[%clk 0:00:04.9]}
114. Kg2 {[%clk 0:00:09.9]} 114... Qe2+ {[%clk 0:00:05.3]} 115. Kg1 {[%clk
0:00:10.3]} 115... Qe4 {[%clk 0:00:05]} 116. Kh2 {[%clk 0:00:10.4]} 116... Qg4
{[%clk 0:00:05.1]} 117. Rg3 {[%clk 0:00:08.1]} 117... Qe2+ {[%clk 0:00:05.3]}
118. Rg2 {[%clk 0:00:08.1]} 118... Qe5+ {[%clk 0:00:05.4]} 119. Kg1 {[%clk
0:00:08.1]} 119... Kxh5 {[%clk 0:00:05.4]} 120. Rh2+ {[%clk 0:00:07.2]} 120...
Kg4 {[%clk 0:00:05.7]} 121. Rg2+ {[%clk 0:00:07.5]} 121... Kf3 {[%clk
0:00:05.9]} 122. Rf2+ {[%clk 0:00:08.4]} 122... Ke3 {[%clk 0:00:06.1]} 123. Rg2
{[%clk 0:00:08]} 123... Qd4 {[%clk 0:00:04.9]} 124. Kh2 {[%clk 0:00:08]} 124...
Qd6+ {[%clk 0:00:03.9]} 125. Kh3 {[%clk 0:00:08.1]} 125... Kf3 {[%clk
0:00:03.4]} 126. Rg4 {[%clk 0:00:06.4]} 126... Qh6+ {[%clk 0:00:02.3]} 127. Rh4
{[%clk 0:00:06.8]} 127... Qe6+ {[%clk 0:00:03.1]} 128. Kh2 {[%clk 0:00:07.1]}
128... Qe2+ {[%clk 0:00:03.6]} 129. Kh3 {[%clk 0:00:07.3]} 129... Qg2# {[%clk
0:00:04.5]} 0-1

[Event "*** Titled Tuesday Blitz"]
[Site "Chess.com"]
[Date "2020.11.03"]
[Round "8"]
[White "pedroholly22"]
[Black "rugbyclub"]
[Result "1-0"]
[WhiteElo "2379"]
[BlackElo "2215"]
[TimeControl "180+1"]
[EndTime "11:26:15 PST"]
[Termination "pedroholly22 won by resignation"]

1. e4 {[%clk 0:03:00.9]} 1... c5 {[%clk 0:02:57.6]} 2. Nf3 {[%clk 0:03:00.3]}
2... e6 {[%clk 0:02:58]} 3. d4 {[%clk 0:03:01.2]} 3... cxd4 {[%clk 0:02:57.2]}
4. Nxd4 {[%clk 0:03:02.1]} 4... Nc6 {[%clk 0:02:57.2]} 5. Nc3 {[%clk 0:03:01.1]}
5... Qc7 {[%clk 0:02:56.6]} 6. Be3 {[%clk 0:02:55.3]} 6... a6 {[%clk 0:02:56.4]}
7. Qd2 {[%clk 0:02:52.2]} 7... Nf6 {[%clk 0:02:56.1]} 8. O-O-O {[%clk
0:02:51.1]} 8... Bb4 {[%clk 0:02:54.4]} 9. f3 {[%clk 0:02:51.1]} 9... Ne5 {[%clk
0:02:54.3]} 10. Kb1 {[%clk 0:02:46.5]} 10... b5 {[%clk 0:02:51.2]} 11. Ncxb5
{[%clk 0:02:43.7]} 11... axb5 {[%clk 0:02:48.6]} 12. Qxb4 {[%clk 0:02:43]} 12...
Nc4 {[%clk 0:02:41.6]} 1-0

[Event "*** Titled Tuesday Blitz"]
[Site "Chess.com"]
[Date "2020.11.03"]
[Round "8"]
[White "goldenpuppy"]
[Black "vovachesss"]
[Result "0-1"]
[WhiteElo "2362"]
[BlackElo "2660"]
[TimeControl "180+1"]
[EndTime "11:27:15 PST"]
[Termination "vovachesss won by resignation"]

1. e4 {[%clk 0:03:00.9]} 1... e5 {[%clk 0:02:58.7]} 2. Nf3 {[%clk 0:02:57.6]}
2... d5 {[%clk 0:02:59.3]} 3. Nxe5 {[%clk 0:02:55]} 3... Bd6 {[%clk 0:02:59.3]}
4. d4 {[%clk 0:02:54.4]} 4... dxe4 {[%clk 0:02:59.5]} 5. Nc4 {[%clk 0:02:52.9]}
5... Nf6 {[%clk 0:02:59.6]} 6. Nc3 {[%clk 0:02:51.4]} 6... O-O {[%clk
0:03:00.2]} 7. Be3 {[%clk 0:02:51.1]} 7... Nc6 {[%clk 0:03:00.4]} 8. Qd2 {[%clk
0:02:50.8]} 8... Re8 {[%clk 0:03:00.7]} 9. O-O-O {[%clk 0:02:50.3]} 9... a6
{[%clk 0:03:01.3]} 10. Kb1 {[%clk 0:02:49.7]} 10... b5 {[%clk 0:02:58.4]} 11.
Nxd6 {[%clk 0:02:49.9]} 11... Qxd6 {[%clk 0:02:58.1]} 12. h4 {[%clk 0:02:50.8]}
12... Nb4 {[%clk 0:02:51.7]} 13. h5 {[%clk 0:02:48.9]} 13... Be6 {[%clk
0:02:46.1]} 14. a3 {[%clk 0:02:47.8]} 14... Nbd5 {[%clk 0:02:45.1]} 15. Nxd5
{[%clk 0:02:47.8]} 15... Qxd5 {[%clk 0:02:44.9]} 16. c4 {[%clk 0:02:45.8]} 16...
bxc4 {[%clk 0:02:44.3]} 17. Qc3 {[%clk 0:02:45.6]} 17... Reb8 {[%clk 0:02:42.1]}
18. Be2 {[%clk 0:02:41.5]} 18... Rb3 {[%clk 0:02:41.4]} 19. Qc2 {[%clk
0:02:34.3]} 19... c3 {[%clk 0:02:41.7]} 20. Bc1 {[%clk 0:02:34.5]} 20... Rab8
{[%clk 0:02:40.2]} 21. h6 {[%clk 0:02:17]} 21... Rxa3 {[%clk 0:02:35.8]} 0-1

[Event "*** Titled Tuesday Blitz"]
[Site "Chess.com"]
[Date "2020.11.03"]
[Round "8"]
[White "Kapibara_Warri0r"]
[Black "Tenamu"]
[Result "0-1"]
[WhiteElo "2142"]
[BlackElo "2347"]
[TimeControl "180+1"]
[EndTime "11:28:11 PST"]
[Termination "Tenamu won by resignation"]

1. e4 {[%clk 0:03:00.9]} 1... e6 {[%clk 0:02:56.4]} 2. d4 {[%clk 0:03:00.4]}
2... d5 {[%clk 0:02:54.8]} 3. Nc3 {[%clk 0:03:00.7]} 3... Nf6 {[%clk 0:02:54.1]}
4. Bg5 {[%clk 0:02:59.7]} 4... Bb4 {[%clk 0:02:53.2]} 5. e5 {[%clk 0:02:58.2]}
5... h6 {[%clk 0:02:51.6]} 6. Bc1 {[%clk 0:02:57.4]} 6... Ne4 {[%clk 0:02:49.8]}
7. Qg4 {[%clk 0:02:56.7]} 7... g6 {[%clk 0:02:45.1]} 8. a3 {[%clk 0:02:47.1]}
8... Bxc3+ {[%clk 0:02:42.1]} 9. bxc3 {[%clk 0:02:46.9]} 9... c5 {[%clk
0:02:42.6]} 10. Be3 {[%clk 0:02:40.5]} 10... Nc6 {[%clk 0:02:38.5]} 11. Ne2
{[%clk 0:02:35.5]} 11... Qa5 {[%clk 0:02:33.3]} 12. dxc5 {[%clk 0:02:15.7]}
12... Nxe5 {[%clk 0:02:28.1]} 13. Qf4 {[%clk 0:02:14.5]} 13... Nc4 {[%clk
0:02:25.4]} 14. f3 {[%clk 0:02:04.8]} 14... g5 {[%clk 0:02:19.9]} 0-1

[Event "*** Titled Tuesday Blitz"]
[Site "Chess.com"]
[Date "2020.11.03"]
[Round "8"]
[White "GMaka"]
[Black "TrickyFortem"]
[Result "1-0"]
[WhiteElo "2415"]
[BlackElo "2533"]
[TimeControl "180+1"]
[EndTime "11:28:15 PST"]
[Termination "GMaka won by resignation"]

1. d4 {[%clk 0:02:57.5]} 1... Nf6 {[%clk 0:02:56.3]} 2. c4 {[%clk 0:02:56.7]}
2... e6 {[%clk 0:02:55.2]} 3. Bg5 {[%clk 0:02:55.3]} 3... Be7 {[%clk 0:02:54.8]}
4. Nf3 {[%clk 0:02:45.7]} 4... d5 {[%clk 0:02:54.8]} 5. Nc3 {[%clk 0:02:44.8]}
5... O-O {[%clk 0:02:55.3]} 6. cxd5 {[%clk 0:02:43.9]} 6... exd5 {[%clk
0:02:55.2]} 7. e3 {[%clk 0:02:43.7]} 7... Nbd7 {[%clk 0:02:53.7]} 8. Bd3 {[%clk
0:02:42.8]} 8... Re8 {[%clk 0:02:54.2]} 9. Qc2 {[%clk 0:02:40.3]} 9... c6 {[%clk
0:02:53.4]} 10. O-O-O {[%clk 0:02:39.2]} 10... b5 {[%clk 0:02:50.8]} 11. Ne5
{[%clk 0:02:35.5]} 11... Qb6 {[%clk 0:02:46.9]} 12. Nxd7 {[%clk 0:02:32.6]}
12... Bxd7 {[%clk 0:02:47.8]} 13. Bxf6 {[%clk 0:02:32]} 13... Bxf6 {[%clk
0:02:47.8]} 14. Bxh7+ {[%clk 0:02:32.6]} 14... Kf8 {[%clk 0:02:45.9]} 15. h4
{[%clk 0:02:30.2]} 15... a5 {[%clk 0:02:44.6]} 16. h5 {[%clk 0:02:29.2]} 16...
a4 {[%clk 0:02:43.6]} 17. Bf5 {[%clk 0:02:28.5]} 17... Qb7 {[%clk 0:02:32.2]}
18. h6 {[%clk 0:02:05.4]} 18... b4 {[%clk 0:02:25.9]} 19. Bxd7 {[%clk
0:01:46.3]} 19... Qxd7 {[%clk 0:02:25.3]} 20. h7 {[%clk 0:01:45.7]} 20... Ke7
{[%clk 0:02:24.8]} 21. Nxa4 {[%clk 0:01:45.8]} 21... g6 {[%clk 0:02:18.8]} 22.
Nb6 {[%clk 0:01:44]} 22... Qa7 {[%clk 0:02:12.1]} 23. Qc5+ {[%clk 0:01:41.9]}
23... Ke6 {[%clk 0:02:12.3]} 24. Qxc6+ {[%clk 0:01:39.4]} 1-0

[Event "*** Titled Tuesday Blitz"]
[Site "Chess.com"]
[Date "2020.11.03"]
[Round "8"]
[White "RamyresCoelho"]
[Black "AsaHoffmann"]
[Result "0-1"]
[WhiteElo "2053"]
[BlackElo "2296"]
[TimeControl "180+1"]
[EndTime "11:28:23 PST"]
[Termination "AsaHoffmann won by resignation"]

1. e4 {[%clk 0:03:00]} 1... d6 {[%clk 0:02:55.9]} 2. d4 {[%clk 0:02:58]} 2...
Nf6 {[%clk 0:02:55.3]} 3. Nc3 {[%clk 0:02:58.5]} 3... c6 {[%clk 0:02:55.2]} 4.
f3 {[%clk 0:02:58.8]} 4... Nbd7 {[%clk 0:02:54.2]} 5. Be3 {[%clk 0:02:59.3]}
5... e5 {[%clk 0:02:54.1]} 6. dxe5 {[%clk 0:02:59]} 6... dxe5 {[%clk 0:02:53.9]}
7. a4 {[%clk 0:02:55.1]} 7... Qa5 {[%clk 0:02:53.3]} 8. Bc4 {[%clk 0:02:54.8]}
8... Bc5 {[%clk 0:02:51.5]} 9. Bxc5 {[%clk 0:02:54.5]} 9... Nxc5 {[%clk
0:02:49]} 10. Ne2 {[%clk 0:02:50.9]} 10... Be6 {[%clk 0:02:48.7]} 11. Bxe6
{[%clk 0:02:50.3]} 11... Nxe6 {[%clk 0:02:48.3]} 12. O-O {[%clk 0:02:51.2]}
12... Rd8 {[%clk 0:02:47.5]} 13. Qe1 {[%clk 0:02:50.4]} 13... O-O {[%clk
0:02:40]} 14. Nd5 {[%clk 0:02:48.4]} 14... Qc5+ {[%clk 0:02:31.8]} 15. Kh1
{[%clk 0:02:39.8]} 15... cxd5 {[%clk 0:02:31.4]} 16. b4 {[%clk 0:02:39.1]} 16...
Qe3 {[%clk 0:02:26.9]} 17. exd5 {[%clk 0:02:31.9]} 17... Nxd5 {[%clk 0:02:26.7]}
18. b5 {[%clk 0:02:27.4]} 18... Nd4 {[%clk 0:02:23.7]} 19. Nxd4 {[%clk
0:02:26.6]} 19... Qxe1 {[%clk 0:02:23.3]} 20. Rfxe1 {[%clk 0:02:25.2]} 20...
exd4 {[%clk 0:02:23.4]} 21. Rad1 {[%clk 0:02:25.3]} 21... Ne3 {[%clk 0:02:22.9]}
22. Rd2 {[%clk 0:02:24.2]} 22... Rfe8 {[%clk 0:02:21.2]} 23. h4 {[%clk
0:02:16.3]} 23... Nf5 {[%clk 0:02:14.7]} 24. Rxe8+ {[%clk 0:02:14.9]} 24... Rxe8
{[%clk 0:02:14]} 25. g4 {[%clk 0:02:07.8]} 25... Nxh4 {[%clk 0:02:12.5]} 26.
Rxd4 {[%clk 0:02:08.2]} 26... Nxf3 {[%clk 0:02:12.3]} 27. Rd7 {[%clk 0:02:08.8]}
27... h6 {[%clk 0:02:06.4]} 28. Rxb7 {[%clk 0:02:08.2]} 28... Re2 {[%clk
0:02:05.9]} 29. Rb8+ {[%clk 0:01:59.2]} 29... Kh7 {[%clk 0:02:05]} 0-1